Workbook

Sheet 0006
AJ2: 事業番号 | AR2: =IF(OR(AO2=" ", AO2=""), "", "-") ->  | AS2: 6 | AV2: =IF(AW2="", "", "-") -> 
A3: 平成３１年度行政事業レビューシート | AI3: （ | AJ3: 人事院 | AX3: ）
A4: 事業名 | G4: 公平審査 | Y4: 担当部局庁 | AE4: 公平審査局 | AQ4: 作成責任者
A5: 事業開始年度 | G5: 昭和２４年度 | M5: 事業終了 （予定）年度 | S5: 終了予定なし | Y5: 担当課室 | AE5: 調整課 | AQ5: 課長 長谷川 一也
A6: 会計区分 | G6: 一般会計
A7: 根拠法令 （具体的な 条項も記載） | G7: 国家公務員法第86条、87条、88条、89条、90条、90条の２、91条、92条、92条の2 国家公務員災害補償法第24条、25条 一般職の職員の給与に関する法律第21条 人事院規則13-１、13-2、13-3、13-4 | Y7: 関係する 計画、通知等 | AE7: -
A8: 主要政策・施策 | G8: - | Y8: 主要経費 | AE8: その他の事項経費
A9: 事業の目的 （目指す姿を簡潔に。3行程度以内） | G9: 不利益処分についての審査請求、勤務条件に関する行政措置の要求、災害補償の実施に関する審査の申立て等及び給与の決定に関する審査の申立てが人事院に対してなされた場合に、それぞれ所定の審査手続に従って、できる限り迅速かつ適切に事案の処理を行う。
A10: 事業概要 （5行程度以内。別添可） | G10: 公平審査においては、各審査制度の審査方法・手続に従って公平委員、調査員等ができるだけ迅速かつ適切に事案の処理に取り組み、審理や事実調査、必要に応じた証人尋問などを本院及び地方で実施し、その後判定を作成し発出する。災害補償審査の申立てに関しては、それぞれ個別の事案の調査に当たって医学的な証拠の収集や主治医からの意見聴取を行うとともに、専門の委員から意見を聴取した上で判定を作成し発出する。
A11: 実施方法 | G11: 直接実施
A12: 予算額・ 執行額 （単位:百万円） | P12: 28年度 | W12: 29年度 | AD12: 30年度 | AK12: 31年度 | AR12: 32年度要求
G13: 予算の状況 | I13: 当初予算 | P13: 11 | W13: 10 | AD13: 9 | AK13: 8 | AR13: 8
I14: 補正予算 | P14: 0 | W14: 0 | AD14: 0
I15: 前年度から繰越し | P15: 0 | W15: 0 | AD15: 0 | AK15: 0
I16: 翌年度へ繰越し | P16: 0 | W16: 0 | AD16: 0
I17: 予備費等 | P17: 0 | W17: 0 | AD17: 0
I18: 計 | P18: =SUM(P13:V17) -> 11 | W18: =SUM(W13:AC17) -> 10 | AD18: =SUM(AD13:AJ17) -> 9 | AK18: =SUM(AK13:AQ17) -> 8 | AR18: =SUM(AR13:AX17) -> 8
G19: 執行額 | P19: 6 | W19: 4 | AD19: 5
G20: 執行率（％） | P20: =IF(P18=0, "-", SUM(P19)/P18) -> 0.5454545455 | W20: =IF(W18=0, "-", SUM(W19)/W18) -> 0.4 | AD20: =IF(AD18=0, "-", SUM(AD19)/AD18) -> 0.5555555556
G21: 当初予算＋補正予算に対する執行額の割合（％） | P21: =IF(P19=0, "-", SUM(P19)/SUM(P13,P14)) -> 0.5454545455 | W21: =IF(W19=0, "-", SUM(W19)/SUM(W13,W14)) -> 0.4 | AD21: =IF(AD19=0, "-", SUM(AD19)/SUM(AD13,AD14)) -> 0.5555555556
A22: 平成31・32年度 予算内訳 （単位：百万円） | G22: 歳出予算目 | P22: 31年度当初予算 | W22: 32年度要求 | AD22: 主な増減理由
G23: 職員旅費 | P23: 3.5 | W23: 3.6 | AD23: 審理や実地調査等の実績を踏まえた減
G24: 諸謝金 | P24: 2.06 | W24: 1.7
G25: 庁費 | P25: 1.97 | W25: 1.9
G26: 情報処理業務庁費 | P26: 0.36 | W26: 0.4
G27: 講師等旅費 | P27: 0.04 | W27: 0.04
G28: 証人等旅費 | P28: 0.02 | W28: 0.02
G29: 計 | P29: =AK13 -> 8 | W29: =AR13 -> 8
A30: 成果目標及び 成果実績 （アウトカム） | G30: 定量的な成果目標 | P30: 成果指標 | AB30: 単位 | AE30: 28年度 | AI30: 29年度 | AM30: 30年度 | AQ30: 中間目標 | AU30: 目標最終年度
AQ31: - | AS31: 年度 | AU31: - | AW31: 年度
G32: 全判定発出件数に占める結審等から５か月以内に判定等を行った件数の割合を80％以上にする。 | P32: 全判定件数に占める結審等から５か月以内に判定等を行った件数の割合 | Y32: 成果実績 | AB32: ％ | AE32: 97.1 | AI32: 82.4 | AM32: 89.7
Y33: 目標値 | AB33: ％ | AE33: 80 | AI33: 80 | AM33: 80
Y34: 達成度 | AB34: ％ | AE34: =AE32/AE33*100 -> 121.375 | AI34: =AI32/AI33*100 -> 103 | AM34: =AM32/AM33*100 -> 112.125
A35: 根拠として用いた 統計・データ名 （出典） | G35: 平成30年度人事院政策評価結果
A37: 成果目標及び 成果実績 （アウトカム） | G37: 定量的な成果目標 | P37: 成果指標 | AB37: 単位 | AE37: 28年度 | AI37: 29年度 | AM37: 30年度 | AQ37: 中間目標 | AU37: 目標最終年度
AQ38: - | AS38: 年度 | AU38: - | AW38: 年度
G39: 不利益処分審査請求事案について、受付から１年以内に処理した件数の割合を75％以上にする。 | P39: 不利益処分審査請求事案の全処理件数に占める受付から１年以内に処理した件数の割合 | Y39: 成果実績 | AB39: ％ | AE39: 85.7 | AI39: 90.9 | AM39: 76.9
Y40: 目標値 | AB40: ％ | AE40: 75 | AI40: 75 | AM40: 75
Y41: 達成度 | AB41: ％ | AE41: =AE39/AE40*100 -> 114.2666667 | AI41: =AI39/AI40*100 -> 121.2 | AM41: 102.5333333
A42: 根拠として用いた 統計・データ名 （出典） | G42: 平成30年度人事院政策評価結果
A44: 成果目標及び 成果実績 （アウトカム） | G44: 定量的な成果目標 | P44: 成果指標 | AB44: 単位 | AE44: 28年度 | AI44: 29年度 | AM44: 30年度 | AQ44: 中間目標 | AU44: 目標最終年度
AS45: 年度 | AW45: 年度
Y46: 成果実績
Y47: 目標値
Y48: 達成度 | AB48: ％
A49: 根拠として用いた 統計・データ名 （出典）
A51: 成果目標及び 成果実績 （アウトカム） | G51: 定量的な成果目標 | P51: 成果指標 | AB51: 単位 | AE51: 28年度 | AI51: 29年度 | AM51: 30年度 | AQ51: 中間目標 | AU51: 目標最終年度
AS52: 年度 | AW52: 年度
Y53: 成果実績
Y54: 目標値
Y55: 達成度 | AB55: ％
A56: 根拠として用いた 統計・データ名 （出典）
A58: 成果目標及び 成果実績 （アウトカム） | G58: 定量的な成果目標 | P58: 成果指標 | AB58: 単位 | AE58: 28年度 | AI58: 29年度 | AM58: 30年度 | AQ58: 中間目標 | AU58: 目標最終年度
AS59: 年度 | AW59: 年度
Y60: 成果実績
Y61: 目標値
Y62: 達成度 | AB62: ％
A63: 根拠として用いた 統計・データ名 （出典）
A65: 横断的な施策に係る成果目標 及び成果実績 （アウトカム） | H65: 定量的な成果目標 | P65: 成果指標 | W65: 分類 | AB65: 単位 | AE65: 28年度 | AI65: 29年度 | AM65: 30年度 | AQ65: 中間目標 | AU65: 目標最終年度
AS66: 年度 | AW66: 年度
G67: 目標・指標 | Y67: 成果実績 | AB67: 円/t-CO2
Y68: 目標値 | AB68: 円/t-CO2
Y69: 達成度 | AB69: ％
A70: 地球温暖化対策関係 | G70: 算出方法 | W70: うち、 直接効果 | Y70: 成果実績 | AB70: 円/t-CO2
Y71: 目標値 | AB71: 円/t-CO2
Y72: 達成度 | AB72: ％
A73: 横断的な施策に係る成果目標 及び成果実績 （アウトカム） | H73: 定量的な成果目標 | P73: 成果指標 | AB73: 単位 | AE73: 28年度 | AI73: 29年度 | AM73: 30年度 | AQ73: 中間目標 | AU73: 目標最終年度
AS74: 年度 | AW74: 年度
G75: 目標・指標 | Y75: 成果実績
Y76: 目標値
Y77: 達成度 | AB77: ％
A78: ●● | E78: 関係 | G78: 算出方法
A79: 成果目標及び成果実績（アウトカム）欄についてさらに記載が必要な場合はチェックの上【別紙１】に記載 | AO79: チェック
A80: 定量的な成果目標の設定が困難な場合 | B80: 定量的な目標が設定できない理由及び定性的な成果目標 | G80: 定量的な目標が設定できない理由 | AB80: 定性的な成果目標と28～30年度の達成状況・実績
B85: 事業の妥当性を検証するための代替的な達成目標及び実績 | G85: 代替目標 | P85: 代替指標 | AB85: 単位 | AE85: 28年度 | AI85: 29年度 | AM85: 30年度 | AQ85: 中間目標 | AU85: 目標最終年度
AS86: 年度 | AW86: 年度
Y87: 実績
Y88: 目標値
Y89: 達成度 | AB89: ％
B90: 事業の妥当性を検証するための代替的な達成目標及び実績 | G90: 代替目標 | P90: 代替指標 | AB90: 単位 | AE90: 28年度 | AI90: 29年度 | AM90: 30年度 | AQ90: 中間目標 | AU90: 目標最終年度
AS91: 年度 | AW91: 年度
Y92: 実績
Y93: 目標値
Y94: 達成度 | AB94: ％
B95: 事業の妥当性を検証するための代替的な達成目標及び実績 | G95: 代替目標 | P95: 代替指標 | AB95: 単位 | AE95: 28年度 | AI95: 29年度 | AM95: 30年度 | AQ95: 中間目標 | AU95: 目標最終年度
AS96: 年度 | AW96: 年度
Y97: 実績
Y98: 目標値
Y99: 達成度 | AB99: ％
A100: 活動指標及び 活動実績 （アウトプット） | G100: 活動指標 | AB100: 単位 | AE100: 28年度 | AI100: 29年度 | AM100: 30年度 | AQ100: 31年度 活動見込 | AU100: 32年度 活動見込
G101: 処理件数（判定の件数。括弧内は取下げ・却下等を含む件数。） | Y101: 活動実績 | AB101: 件 | AE101: 35(47) | AI101: 34(62) | AM101: 29(47) | AQ101: - | AU101: -
Y102: 当初見込み | AB102: 件 | AE102: - | AI102: - | AM102: - | AQ102: - | AU102: -
A103: 活動指標及び 活動実績 （アウトプット） | G103: 活動指標 | AB103: 単位 | AE103: 28年度 | AI103: 29年度 | AM103: 30年度 | AQ103: 31年度 活動見込 | AU103: 32年度 活動見込
Y104: 活動実績
Y105: 当初見込み
A106: 活動指標及び 活動実績 （アウトプット） | G106: 活動指標 | AB106: 単位 | AE106: 28年度 | AI106: 29年度 | AM106: 30年度 | AQ106: 31年度 活動見込 | AU106: 32年度 活動見込
Y107: 活動実績
Y108: 当初見込み
A109: 活動指標及び 活動実績 （アウトプット） | G109: 活動指標 | AB109: 単位 | AE109: 28年度 | AI109: 29年度 | AM109: 30年度 | AQ109: 31年度 活動見込 | AU109: 32年度 活動見込
Y110: 活動実績
Y111: 当初見込み
A112: 活動指標及び 活動実績 （アウトプット） | G112: 活動指標 | AB112: 単位 | AE112: 28年度 | AI112: 29年度 | AM112: 30年度 | AQ112: 31年度 活動見込 | AU112: 32年度 活動見込
Y113: 活動実績
Y114: 当初見込み
A115: 単位当たり コスト | G115: 算出根拠 | AB115: 単位 | AE115: 28年度 | AI115: 29年度 | AM115: 30年度 | AQ115: 31年度活動見込
G116: 執行額／処理件数 | Y116: 単位当たり コスト | AB116: 万円 | AE116: =600/35 -> 17.14285714 | AI116: =400/34 -> 11.76470588 | AM116: =500/29 -> 17.24137931 | AQ116: -
Y117: 計算式 | AB117: 万円/件 | AE117: 600/35 | AI117: 400/34 | AM117: 500/29 | AQ117: -
A118: 単位当たり コスト | G118: 算出根拠 | AB118: 単位 | AE118: 28年度 | AI118: 29年度 | AM118: 30年度 | AQ118: 31年度活動見込
G119: ／ | Y119: 単位当たり コスト
Y120: 計算式 | AB120: /
A121: 単位当たり コスト | G121: 算出根拠 | AB121: 単位 | AE121: 28年度 | AI121: 29年度 | AM121: 30年度 | AQ121: 31年度活動見込
G122: ／ | Y122: 単位当たり コスト
Y123: 計算式 | AB123: /
A124: 単位当たり コスト | G124: 算出根拠 | AB124: 単位 | AE124: 28年度 | AI124: 29年度 | AM124: 30年度 | AQ124: 31年度活動見込
G125: ／ | Y125: 単位当たり コスト
Y126: 計算式 | AB126: /
A127: 単位当たり コスト | G127: 算出根拠 | AB127: 単位 | AE127: 28年度 | AI127: 29年度 | AM127: 30年度 | AQ127: 31年度活動見込
G128: ／ | Y128: 単位当たり コスト
Y129: 計算式 | AB129: /
A130: 政策評価、新経済・財政再生計画との関係 | C130: 政策評価 | E130: 政策
E131: 施策
E132: 測定指標 | G132: 定量的指標 | AB132: 単位 | AE132: 28年度 | AI132: 29年度 | AM132: 30年度 | AQ132: 中間目標 | AU132: 目標年度
AS133: 年度 | AW133: 年度
Y134: 実績値
Y135: 目標値
G136: 定量的指標 | AB136: 単位 | AE136: 28年度 | AI136: 29年度 | AM136: 30年度 | AQ136: 中間目標 | AU136: 目標年度
AS137: 年度 | AW137: 年度
Y138: 実績値
Y139: 目標値
G140: 定量的指標 | AB140: 単位 | AE140: 28年度 | AI140: 29年度 | AM140: 30年度 | AQ140: 中間目標 | AU140: 目標年度
AS141: 年度 | AW141: 年度
Y142: 実績値
Y143: 目標値
G144: 定量的指標 | AB144: 単位 | AE144: 28年度 | AI144: 29年度 | AM144: 30年度 | AQ144: 中間目標 | AU144: 目標年度
AS145: 年度 | AW145: 年度
Y146: 実績値
Y147: 目標値
G148: 定量的指標 | AB148: 単位 | AE148: 28年度 | AI148: 29年度 | AM148: 30年度 | AQ148: 中間目標 | AU148: 目標年度
AS149: 年度 | AW149: 年度
Y150: 実績値
Y151: 目標値
G152: 定性的指標 | Q152: 目標 | AB152: 目標年度 | AE152: 施策の進捗状況（目標）
AE156: 施策の進捗状況（実績）
G159: 定性的指標 | Q159: 目標 | AB159: 目標年度 | AE159: 施策の進捗状況（目標）
AE163: 施策の進捗状況（実績）
G166: 定性的指標 | Q166: 目標 | AB166: 目標年度 | AE166: 施策の進捗状況（目標）
AE170: 施策の進捗状況（実績）
G173: 定性的指標 | Q173: 目標 | AB173: 目標年度 | AE173: 施策の進捗状況（目標）
AE177: 施策の進捗状況（実績）
G180: 定性的指標 | Q180: 目標 | AB180: 目標年度 | AE180: 施策の進捗状況（目標）
AE184: 施策の進捗状況（実績）
E187: 本事業の成果と上位施策・測定指標との関係
E190: 政策
E191: 施策
E192: 測定指標 | G192: 定量的指標 | AB192: 単位 | AE192: 28年度 | AI192: 29年度 | AM192: 30年度 | AQ192: 中間目標 | AU192: 目標年度
AS193: 年度 | AW193: 年度
Y194: 実績値
Y195: 目標値
G196: 定量的指標 | AB196: 単位 | AE196: 28年度 | AI196: 29年度 | AM196: 30年度 | AQ196: 中間目標 | AU196: 目標年度
AS197: 年度 | AW197: 年度
Y198: 実績値
Y199: 目標値
G200: 定量的指標 | AB200: 単位 | AE200: 28年度 | AI200: 29年度 | AM200: 30年度 | AQ200: 中間目標 | AU200: 目標年度
AS201: 年度 | AW201: 年度
Y202: 実績値
Y203: 目標値
G204: 定量的指標 | AB204: 単位 | AE204: 28年度 | AI204: 29年度 | AM204: 30年度 | AQ204: 中間目標 | AU204: 目標年度
AS205: 年度 | AW205: 年度
Y206: 実績値
Y207: 目標値
G208: 定量的指標 | AB208: 単位 | AE208: 28年度 | AI208: 29年度 | AM208: 30年度 | AQ208: 中間目標 | AU208: 目標年度
AS209: 年度 | AW209: 年度
Y210: 実績値
Y211: 目標値
G212: 定性的指標 | Q212: 目標 | AB212: 目標年度 | AE212: 施策の進捗状況（目標）
AE216: 施策の進捗状況（実績）
G219: 定性的指標 | Q219: 目標 | AB219: 目標年度 | AE219: 施策の進捗状況（目標）
AE223: 施策の進捗状況（実績）
G226: 定性的指標 | Q226: 目標 | AB226: 目標年度 | AE226: 施策の進捗状況（目標）
AE230: 施策の進捗状況（実績）
G233: 定性的指標 | Q233: 目標 | AB233: 目標年度 | AE233: 施策の進捗状況（目標）
AE237: 施策の進捗状況（実績）
G240: 定性的指標 | Q240: 目標 | AB240: 目標年度 | AE240: 施策の進捗状況（目標）
AE244: 施策の進捗状況（実績）
E247: 本事業の成果と上位施策・測定指標との関係
E250: 政策
E251: 施策
E252: 測定指標 | G252: 定量的指標 | AB252: 単位 | AE252: 28年度 | AI252: 29年度 | AM252: 30年度 | AQ252: 中間目標 | AU252: 目標年度
AS253: 年度 | AW253: 年度
Y254: 実績値
Y255: 目標値
G256: 定量的指標 | AB256: 単位 | AE256: 28年度 | AI256: 29年度 | AM256: 30年度 | AQ256: 中間目標 | AU256: 目標年度
AS257: 年度 | AW257: 年度
Y258: 実績値
Y259: 目標値
G260: 定量的指標 | AB260: 単位 | AE260: 28年度 | AI260: 29年度 | AM260: 30年度 | AQ260: 中間目標 | AU260: 目標年度
AS261: 年度 | AW261: 年度
Y262: 実績値
Y263: 目標値
G264: 定量的指標 | AB264: 単位 | AE264: 28年度 | AI264: 29年度 | AM264: 30年度 | AQ264: 中間目標 | AU264: 目標年度
... 588 more rows
